bitfinex/quotes_BTCUSD_20241107
["timestamp","ask_amount","ask_price","bid_price","bid_amount"]
[1730997419180,0.4450597,75618.0,75617.0,8e-05]
[1730997419427,0.05980732,75618.0,75617.0,8e-05]
[1730997419874,0.06480732,75618.0,75617.0,8e-05]
[1730997420357,0.05380732,75618.0,75617.0,8e-05]
[1730997420582,0.05380732,75618.0,75617.0,0.07928]
[1730997420816,0.15401136,75630.0,75617.0,0.07928]
[1730997421008,0.008,75618.0,75617.0,0.07928]
[1730997422145,0.008,75618.0,75617.0,8e-05]
[1730997422367,0.007,75618.0,75617.0,8e-05]
[1730997422579,0.013,75618.0,75617.0,8e-05]
[1730997422743,0.05854952,75618.0,75617.0,8e-05]
[1730997423001,0.006,75618.0,75617.0,8e-05]
[1730997423231,0.011,75618.0,75610.0,0.076176]
[1730997424044,0.006,75618.0,75610.0,0.076176]
[1730997424511,0.006,75618.0,75610.0,0.21106206]
[1730997424714,0.006,75618.0,75613.0,0.015]
[1730997424928,0.006,75618.0,75605.0,0.05871563]
[1730997424929,0.006,75618.0,75617.0,0.21871136]
[1730997425126,0.006,75618.0,75617.0,0.19694102]
[1730997425441,0.19810218,75623.0,75622.0,0.005]
[1730997425890,0.05425481,75632.0,75624.0,0.005]
[1730997426323,0.19810218,75641.0,75624.0,0.005]
[1730997426324,0.19810218,75641.0,75625.0,0.0829]
[1730997426538,0.19810218,75641.0,75625.0,0.08554438]
[1730997426790,0.05222697,75633.0,75626.0,0.0483]
[1730997427017,0.19810218,75641.0,75626.0,0.0483]
[1730997427457,0.25106962,75641.0,75627.0,0.13488532]
[1730997427674,0.25106962,75641.0,75630.0,0.005]
[1730997428989,0.25106962,75641.0,75631.0,0.00264409]
[1730997428990,0.05296744,75641.0,75631.0,0.00264409]
[1730997429211,0.05296744,75641.0,75630.0,0.01]
[1730997429455,0.001,75633.0,75630.0,0.01]
[1730997429653,0.001,75633.0,75631.0,0.00264409]
[1730997430091,0.19810218,75641.0,75631.0,0.00264409]
[1730997430313,0.19810218,75641.0,75631.0,0.00664409]
[1730997430598,0.25199654,75641.0,75631.0,0.00664409]
[1730997430780,0.05489436,75641.0,75632.0,0.21154102]
[1730997431033,0.05489436,75641.0,75633.0,0.00764403]
[1730997431249,0.19810218,75640.0,75633.0,0.00764403]
[1730997431508,0.001,75641.0,75638.0,0.0481]
[1730997431717,0.001,75641.0,75638.0,0.18034102]
[1730997431718,0.19810218,75640.0,75638.0,0.18034102]
[1730997431946,0.001,75641.0,75638.0,0.18034102]
[1730997432193,0.05327641,75645.0,75638.0,0.18034102]
[1730997432428,0.001,75641.0,75638.0,0.18034102]
[1730997432678,0.001,75641.0,75640.0,0.0794]
[1730997432887,0.2522382,75650.0,75640.0,0.21664102]
[1730997433108,0.2522382,75650.0,75642.0,0.05894776]
[1730997433334,0.2522382,75650.0,75645.0,0.05894776]
[1730997433551,0.005,75673.0,75645.0,0.05894776]
[1730997433762,0.05353415,75657.0,75646.0,0.05894776]
[1730997433983,0.19810218,75669.0,75647.0,0.06159127]
[1730997434199,0.25086935,75661.0,75648.0,0.18634776]
[1730997434450,0.25086935,75661.0,75649.0,0.00264343]
[1730997434673,0.25086935,75661.0,75648.0,0.31858878]
[1730997435129,0.23389476,75660.0,75646.0,0.05894776]
[1730997435349,0.002,75654.0,75644.0,0.05894776]
[1730997435591,0.105,75659.0,75640.0,0.001]
[1730997435592,0.1,75652.0,75640.0,0.001]
[1730997435797,0.1,75652.0,75633.0,0.27638969]
[1730997435798,0.1,75652.0,75635.0,0.05894776]
[1730997436028,0.1,75650.0,75646.0,0.001]
[1730997436254,0.1,75650.0,75636.0,0.05894776]
[1730997436743,0.1,75650.0,75645.0,0.002]
[1730997437238,0.13224102,75653.0,75636.0,0.05894776]
[1730997437239,0.1,75652.0,75636.0,0.05894776]
[1730997437448,0.001,75650.0,75636.0,0.05894776]
[1730997437691,0.1,75650.0,75637.0,0.05894776]
[1730997437908,0.1,75650.0,75636.0,0.008]
[1730997437909,0.1,75650.0,75636.0,0.06694776]
[1730997439043,0.1,75650.0,75636.0,0.05894776]
[1730997439291,0.1,75650.0,75636.0,0.008]
[1730997439507,0.101,75650.0,75636.0,0.07494776]
[1730997439730,0.101,75650.0,75639.0,0.05894776]
[1730997439951,0.15136789,75650.0,75641.0,0.05894776]
[1730997440181,0.15236789,75650.0,75637.0,0.05894776]
[1730997440405,0.102,75650.0,75636.0,0.07494776]
[1730997440629,0.001,75650.0,75637.0,0.05894776]
[1730997440895,0.19810218,75649.0,75640.0,0.05894776]
[1730997441136,0.19810218,75649.0,75641.0,0.06194776]
[1730997441366,0.02,75654.0,75642.0,0.05894776]
[1730997441589,0.19810218,75653.0,75646.0,0.07394776]
[1730997441836,0.19810218,75653.0,75651.0,0.05894776]
[1730997442296,0.19810218,75669.0,75651.0,0.05894776]
[1730997442297,0.19810218,75669.0,75651.0,0.07828751]
[1730997442539,0.19810218,75669.0,75652.0,0.06175768]
[1730997442797,0.19810218,75669.0,75653.0,0.05911428]
[1730997443014,0.19810218,75669.0,75652.0,0.0026434]
[1730997443015,0.00167,75661.0,75656.0,0.05911428]
[1730997443241,0.00167,75661.0,75655.0,0.05911428]
[1730997444191,0.00167,75661.0,75656.0,0.00264333]
[1730997444406,0.00167,75661.0,75660.0,0.2313983]
[1730997444637,0.00167,75661.0,75660.0,0.37628226]
[1730997444865,0.00167,75661.0,75660.0,0.37363932]
[1730997445078,0.00167,75661.0,75660.0,0.39363932]
[1730997445293,0.00167,75661.0,75660.0,0.61187058]
[1730997445538,0.00167,75661.0,75660.0,0.49643932]
[1730997446464,0.00167,75661.0,75660.0,0.49443932]
[1730997446651,0.00167,75661.0,75660.0,0.50243932]
[1730997446905,0.00167,75661.0,75660.0,0.51043932]
[1730997447355,0.00167,75661.0,75660.0,0.51243932]
[1730997448185,0.001668,75692.0,75681.0,0.005]
[1730997448406,0.001668,75692.0,75681.0,0.39663932]
[1730997449023,0.001668,75692.0,75690.0,0.015]
[1730997449251,0.001668,75692.0,75690.0,0.14724102]
[1730997449665,0.001668,75692.0,75691.0,0.005]
[1730997449874,0.001668,75692.0,75691.0,0.22884102]
[1730997450287,0.001668,75692.0,75691.0,0.30124102]
[1730997450500,0.001668,75692.0,75691.0,0.32124102]
[1730997450706,0.001668,75692.0,75691.0,0.47525141]
[1730997450912,0.001668,75692.0,75691.0,0.53418658]
[1730997451119,0.001668,75692.0,75691.0,0.56725141]
[1730997451331,0.19810218,75708.0,75707.0,0.16901039]
[1730997451534,0.19810218,75708.0,75707.0,0.37755141]
[1730997452173,0.19810218,75718.0,75713.0,0.005]
[1730997452383,0.19810218,75718.0,75715.0,0.15401039]
[1730997452594,0.19810218,75718.0,75715.0,0.28625141]
[1730997453185,0.19885118,75726.0,75715.0,0.30625141]
[1730997453628,0.19885118,75726.0,75715.0,0.02]
[1730997453629,0.19810218,75718.0,75715.0,0.02]
[1730997453846,0.1,75725.0,75715.0,0.023]
[1730997454057,0.1,75723.0,75715.0,0.02]
[1730997454696,0.13224102,75722.0,75715.0,0.02]
[1730997454911,0.1,75721.0,75715.0,0.02]
[1730997455119,0.1,75719.0,75715.0,0.02]
[1730997455332,0.1,75719.0,75715.0,0.021]
[1730997455560,0.1,75719.0,75715.0,0.004]
[1730997455761,0.1,75719.0,75715.0,0.001]
[1730997455997,0.079,75725.0,75702.0,0.005]
[1730997456206,0.001,75721.0,75715.0,0.002]
[1730997456429,0.179,75725.0,75715.0,0.001]
[1730997456652,0.001,75719.0,75715.0,0.002]
[1730997457057,0.19885118,75726.0,75715.0,0.002]
[1730997457058,0.05288556,75725.0,75715.0,0.001]
[1730997457193,0.05288556,75725.0,75715.0,0.13224102]
[1730997457404,0.001,75725.0,75716.0,0.00264112]
[1730997458436,0.001,75725.0,75716.0,0.03264112]
[1730997458639,0.19885118,75726.0,75716.0,0.03264112]
[1730997458842,0.001,75719.0,75716.0,0.03264112]
[1730997459070,0.19810218,75718.0,75716.0,0.03]
[1730997459274,0.19810218,75717.0,75716.0,0.03]
[1730997459556,0.1,75724.0,75716.0,0.009]
[1730997459819,0.19810218,75718.0,75716.0,0.005]
[1730997459968,0.0771,75722.0,75692.0,0.19810218]
[1730997459969,0.1,75716.0,75692.0,0.19810218]
[1730997460168,0.13224102,75717.0,75692.0,0.19810218]
[1730997460169,0.1,75714.0,75692.0,0.19810218]
[1730997460402,0.1,75712.0,75692.0,0.19810218]
[1730997460623,0.1,75710.0,75690.0,0.005]
[1730997460825,0.1,75710.0,75685.0,0.005]
[1730997460826,0.23224102,75710.0,75685.0,0.005]
[1730997461071,0.19810218,75705.0,75688.0,0.005]
[1730997461499,0.19810218,75705.0,75690.0,0.005]
[1730997461700,0.19842644,75705.0,75688.0,0.00467574]
[1730997461939,0.19842644,75705.0,75686.0,0.13691676]
[1730997462142,0.00032426,75695.0,75681.0,0.052856]
[1730997462348,0.00032426,75695.0,75679.0,0.00467574]
[1730997462349,0.00032426,75695.0,75688.0,0.001]
[1730997463205,0.00032426,75695.0,75687.0,0.02]
[1730997463407,0.00032426,75699.0,75688.0,0.000834]
[1730997463623,0.00032426,75696.0,75691.0,0.02]
[1730997463842,0.19810218,75697.0,75691.0,0.02]
[1730997463843,0.00032426,75695.0,75691.0,0.02]
[1730997465170,0.00032426,75693.0,75691.0,0.02]
[1730997466198,0.00032426,75693.0,75688.0,0.000834]
[1730997466413,0.00132426,75693.0,75688.0,0.000834]
[1730997466618,0.00032426,75689.0,75688.0,0.000834]
[1730997468419,0.05382461,75689.0,75688.0,0.000834]
[1730997468681,0.00032426,75689.0,75688.0,0.000834]
[1730997469158,0.00032426,75691.0,75688.0,0.000834]
[1730997469779,0.00032426,75689.0,75688.0,0.000834]
[1730997473033,3.00032426,75689.0,75688.0,0.000834]
[1730997474018,3.00132426,75689.0,75688.0,0.001834]
[1730997474395,3.00032426,75689.0,75688.0,0.000834]
[1730997474625,3.00132426,75689.0,75688.0,0.002834]
[1730997474830,3.00132426,75689.0,75688.0,0.001834]
[1730997475031,3.00132426,75689.0,75688.0,0.000834]
[1730997475232,3.00232426,75689.0,75688.0,0.001834]
[1730997478532,3.00032426,75689.0,75688.0,0.000834]
[1730997478764,3.00132426,75689.0,75688.0,0.001834]
[1730997479584,3.001,75689.0,75688.0,0.001834]
[1730997480034,3.001,75689.0,75688.0,0.01413623]
[1730997480688,3.0,75689.0,75688.0,0.01313623]
[1730997480916,3.001,75689.0,75688.0,0.01313623]
[1730997481117,3.0,75689.0,75688.0,0.000834]
[1730997481337,3.0,75689.0,75688.0,0.013135]
[1730997482157,3.001,75689.0,75688.0,0.013135]
[1730997482961,3.03611194,75689.0,75688.0,0.013135]
[1730997483179,3.11341194,75689.0,75688.0,0.013135]
[1730997483381,3.07862426,75689.0,75688.0,0.013135]
[1730997483795,3.001,75689.0,75688.0,0.013135]
[1730997484204,3.001,75689.0,75688.0,0.033135]
[1730997484415,3.001,75689.0,75688.0,0.020834]
[1730997484620,3.001,75689.0,75688.0,0.22491402]
[1730997484828,1.5001,75689.0,75688.0,0.35715504]
[1730997485064,0.0002,75689.0,75688.0,0.4160731]
[1730997485271,0.001668,75695.0,75694.0,0.01467574]
[1730997485481,0.001668,75695.0,75694.0,0.15923195]
[1730997486094,0.001668,75695.0,75694.0,0.17923195]
[1730997487457,0.001668,75695.0,75694.0,0.18187375]
[1730997487683,0.001668,75695.0,75694.0,0.19187375]
[1730997487893,0.001668,75695.0,75694.0,0.17155856]
[1730997488107,0.001668,75695.0,75694.0,0.18387891]
[1730997488319,0.001668,75695.0,75694.0,0.18987891]
[1730997488530,0.001668,75695.0,75694.0,0.20320317]
[1730997488710,0.001668,75695.0,75694.0,0.43110317]
[1730997488928,0.001668,75695.0,75694.0,0.59864182]
[1730997489066,0.001668,75695.0,75694.0,0.50044466]
[1730997489900,0.001668,75695.0,75694.0,0.49244466]
[1730997490445,0.19810218,75713.0,75712.0,0.01467574]
[1730997490648,0.19810218,75713.0,75712.0,0.19923711]
[1730997491281,0.19885118,75726.0,75713.0,0.005]
[1730997491595,0.19810218,75718.0,75714.0,0.14454716]
[1730997491912,0.19885118,75726.0,75715.0,0.01230614]
[1730997492134,0.19885118,75726.0,75716.0,0.01230614]
[1730997492358,0.19885118,75726.0,75717.0,0.01230614]
[1730997492590,0.19885118,75726.0,75718.0,0.01230614]
[1730997492817,0.000749,75726.0,75719.0,0.01230614]
[1730997493043,0.000749,75726.0,75720.0,0.01230614]
[1730997493304,0.000749,75726.0,75721.0,0.14718811]
[1730997493532,0.000749,75726.0,75722.0,0.01230614]
[1730997493752,0.000749,75726.0,75723.0,0.01494703]
[1730997493986,0.000749,75726.0,75724.0,0.01230614]
[1730997494198,0.000749,75726.0,75725.0,0.01230614]
[1730997494815,0.000749,75726.0,75725.0,0.02230614]
[1730997495042,0.000749,75726.0,75725.0,0.02229018]
[1730997495487,0.000749,75726.0,75725.0,0.02329018]
[1730997495925,0.000749,75726.0,75725.0,0.01329018]
[1730997496793,0.000749,75726.0,75725.0,0.01429018]
[1730997498583,0.000749,75726.0,75725.0,0.01428014]
[1730997501906,0.000749,75726.0,75725.0,0.002]
[1730997502131,0.000749,75726.0,75725.0,0.01427735]
[1730997502590,0.000749,75726.0,75725.0,0.16151837]
[1730997502829,0.000749,75726.0,75725.0,0.39013567]
[1730997503073,0.000749,75726.0,75725.0,0.64557076]
[1730997503289,0.000749,75726.0,75725.0,0.79984297]
[1730997503499,0.000749,75726.0,75725.0,0.70162591]
[1730997503753,0.000749,75726.0,75725.0,0.47364926]
[1730997503974,0.000749,75726.0,75725.0,0.48064926]
[1730997504189,0.000749,75726.0,75725.0,0.48864926]
[1730997504648,0.000749,75726.0,75725.0,0.48064926]
[1730997504860,0.000749,75726.0,75725.0,0.48164926]
[1730997505067,0.000749,75726.0,75725.0,0.48864926]
[1730997505287,0.000749,75726.0,75725.0,0.57443945]
[1730997505504,0.000749,75726.0,75725.0,0.72825099]
[1730997505716,0.000749,75726.0,75725.0,0.74051576]
[1730997506139,0.000749,75726.0,75725.0,0.73251576]
[1730997506390,0.000749,75726.0,75725.0,0.62744822]
[1730997506595,0.000749,75726.0,75725.0,0.63544777]
[1730997506794,0.000749,75726.0,75725.0,0.64244777]
[1730997506942,0.000749,75726.0,75725.0,0.62744777]
[1730997507180,0.000749,75726.0,75725.0,0.63544777]
[1730997507387,0.000749,75726.0,75725.0,0.64244777]
[1730997507596,0.000749,75726.0,75725.0,1.03861777]
[1730997507791,0.000749,75726.0,75725.0,1.03061777]
[1730997507998,0.000749,75726.0,75725.0,1.02361777]
[1730997508401,0.000749,75726.0,75725.0,1.03061777]
[1730997508660,0.000749,75726.0,75725.0,1.03861777]
[1730997509664,0.000749,75726.0,75725.0,1.03161807]
[1730997509870,0.000749,75726.0,75725.0,1.02361807]
[1730997510074,0.000749,75726.0,75725.0,1.12860732]
[1730997510244,0.000749,75726.0,75725.0,1.12960732]
[1730997510648,0.000749,75726.0,75725.0,1.12860732]
[1730997510850,0.000749,75726.0,75725.0,1.12160732]
[1730997511060,0.000749,75726.0,75725.0,1.03161807]
[1730997511416,0.000749,75726.0,75725.0,1.03861807]
[1730997511618,0.000749,75726.0,75725.0,1.02361807]
[1730997511806,0.000749,75726.0,75725.0,1.12948801]
[1730997512050,0.000749,75726.0,75725.0,1.03161807]
[1730997512679,0.000749,75726.0,75725.0,0.87580653]
[1730997512911,0.000749,75726.0,75725.0,0.83080653]
[1730997513113,0.000749,75726.0,75725.0,0.82980653]
[1730997513330,0.000749,75726.0,75725.0,0.82280653]
[1730997513516,0.000749,75726.0,75725.0,0.83080653]
[1730997513731,0.000749,75726.0,75725.0,0.83780653]
[1730997513963,0.000749,75726.0,75725.0,0.82280653]
[1730997514373,0.000749,75726.0,75725.0,0.83780653]
[1730997514618,0.000749,75726.0,75725.0,0.91110322]
[1730997514827,0.000749,75726.0,75725.0,0.83180653]
[1730997515645,0.000749,75726.0,75725.0,0.83980653]
[1730997516438,0.000749,75726.0,75725.0,0.82754191]
[1730997516664,0.000834,75729.0,75728.0,0.01667574]
[1730997516864,0.000749,75737.0,75736.0,0.52429882]
[1730997517072,0.000749,75737.0,75736.0,0.66882934]
[1730997517322,0.000749,75737.0,75736.0,1.06493934]
[1730997517646,0.000749,75737.0,75736.0,0.9111278]
[1730997517851,0.000749,75737.0,75736.0,1.0039338]
[1730997517960,0.000749,75737.0,75736.0,1.17274534]
[1730997518166,0.000749,75737.0,75736.0,1.0189338]
[1730997518411,0.000749,75737.0,75736.0,1.0109338]
[1730997518852,0.000749,75737.0,75736.0,1.0189338]
[1730997519080,0.000749,75737.0,75736.0,1.0119338]
[1730997519504,0.000749,75737.0,75736.0,1.0189338]
[1730997519706,0.000749,75737.0,75736.0,1.07217149]
[1730997520361,0.000749,75737.0,75736.0,1.07217261]
[1730997520806,0.01005861,75746.0,75745.0,0.01467574]
[1730997521020,0.01005861,75746.0,75745.0,0.37601892]
[1730997521256,0.01005861,75746.0,75745.0,0.96994375]
[1730997521668,0.01005861,75746.0,75745.0,0.97194375]
[1730997522134,0.01005861,75746.0,75745.0,0.97195491]
[1730997522383,0.01005861,75746.0,75745.0,0.87408874]
[1730997522595,0.01005861,75746.0,75745.0,0.88108874]
[1730997522812,0.01005861,75746.0,75745.0,0.87908874]
[1730997523255,0.01005861,75746.0,75745.0,0.7102772]
[1730997523700,0.01005861,75746.0,75745.0,0.7621203]
[1730997524938,0.01005861,75746.0,75745.0,0.7102772]
[1730997525159,0.01005861,75746.0,75745.0,0.6102772]
[1730997525627,0.01505861,75746.0,75745.0,0.6102772]
[1730997527547,0.01505861,75746.0,75745.0,0.59798676]
[1730997527758,0.01505861,75746.0,75745.0,0.61028999]
[1730997529511,0.01505861,75746.0,75745.0,0.57028999]
[1730997530816,0.01505861,75746.0,75745.0,0.58028999]
[1730997532333,0.01505861,75746.0,75745.0,0.73410153]
[1730997534115,0.01505861,75746.0,75745.0,0.58028999]
[1730997534546,0.01505861,75746.0,75745.0,0.6858601]
[1730997534763,0.01505861,75746.0,75745.0,0.69819727]
[1730997535385,0.01505861,75746.0,75745.0,0.72119727]
[1730997535588,0.01505861,75746.0,75745.0,0.69903027]
[1730997536012,0.01672461,75746.0,75745.0,0.69903027]
[1730997536224,0.076,75757.0,75745.0,0.69903027]
[1730997536225,0.06872461,75757.0,75754.0,0.00467574]
[1730997536431,0.06872461,75757.0,75756.0,0.0786399]
[1730997536635,0.06872461,75757.0,75756.0,0.09097707]
[1730997537257,0.06872461,75757.0,75756.0,0.09099543]
[1730997538131,0.06872461,75757.0,75756.0,0.01633717]
[1730997538761,0.06872461,75757.0,75756.0,0.04633717]
[1730997539584,0.06872461,75757.0,75756.0,0.05133717]
[1730997541103,0.06872461,75757.0,75756.0,0.05134101]
[1730997542323,0.06872461,75757.0,75756.0,0.02134101]
[1730997542528,0.06872461,75757.0,75756.0,0.009]
[1730997542763,0.06872461,75757.0,75756.0,0.02134381]
[1730997544107,0.06872461,75757.0,75756.0,0.02134761]
[1730997544562,0.06872461,75757.0,75756.0,0.04134761]
[1730997545351,0.06872461,75757.0,75756.0,0.12000587]
[1730997545984,0.000834,75762.0,75756.0,0.12000587]
[1730997546193,0.000834,75762.0,75757.0,0.01234761]
[1730997546406,0.000834,75762.0,75758.0,0.09100587]
[1730997546832,0.000834,75762.0,75758.0,0.15190427]
[1730997547070,0.000834,75762.0,75758.0,0.74171581]
[1730997547284,0.000834,75762.0,75758.0,0.81573445]
[1730997547487,0.000834,75762.0,75758.0,0.93803369]
[1730997547712,0.000834,75762.0,75761.0,0.01467574]
[1730997547925,0.000834,75762.0,75761.0,0.18226361]
[1730997548120,0.000834,75762.0,75761.0,0.60824361]
[1730997550381,0.000834,75762.0,75761.0,0.61524361]
[1730997550707,0.000834,75762.0,75761.0,0.62321915]
[1730997551286,0.000834,75762.0,75761.0,0.74146461]
[1730997552439,0.000834,75762.0,75761.0,0.59521915]
[1730997552606,0.000834,75762.0,75761.0,0.60021915]
[1730997552839,0.000834,75762.0,75761.0,0.59521915]
[1730997553042,0.000834,75762.0,75761.0,0.60021915]
[1730997554045,0.000834,75762.0,75761.0,0.60021164]
[1730997555364,0.12585826,75762.0,75761.0,0.50009761]
[1730997555570,0.12585826,75762.0,75745.0,0.11907846]
[1730997555571,0.04842426,75755.0,75746.0,0.05995061]
[1730997555761,0.04842426,75755.0,75748.0,0.19810218]
[1730997555880,0.04842426,75755.0,75747.0,0.01]
[1730997556490,0.19810218,75754.0,75748.0,0.01231771]
[1730997556694,0.04842426,75755.0,75749.0,0.01231771]
[1730997556916,0.04842426,75755.0,75750.0,0.01231771]
[1730997557129,0.04842426,75755.0,75751.0,0.01231771]
[1730997557358,0.04842426,75755.0,75752.0,0.01231771]
[1730997557568,0.04842426,75755.0,75753.0,0.01231771]
[1730997557782,0.04842426,75755.0,75754.0,0.01231678]
[1730997558481,0.05342426,75755.0,75754.0,0.01231678]
[1730997558710,0.04842426,75755.0,75754.0,0.01231678]
[1730997560032,0.05942426,75755.0,75754.0,0.01231678]
[1730997560257,0.006,75755.0,75747.0,0.005]
[1730997560523,0.001666,75757.0,75750.0,0.06379335]
[1730997560737,0.005,75755.0,75754.0,0.01467574]
[1730997560968,0.01,75755.0,75754.0,0.30336793]
[1730997561175,0.011,75755.0,75754.0,0.31304091]
[1730997561388,0.006,75755.0,75754.0,0.33604091]
[1730997561847,0.001666,75757.0,75756.0,0.03767574]
[1730997562053,0.001666,75757.0,75756.0,0.18222937]
[1730997562288,0.001666,75757.0,75756.0,0.59823937]
[1730997562496,0.001666,75757.0,75756.0,0.61793555]
[1730997563828,0.002666,75757.0,75756.0,0.60193555]
[1730997564252,0.002666,75757.0,75756.0,0.83049163]
[1730997565164,0.002666,75757.0,75756.0,0.70749163]
[1730997565377,0.002666,75757.0,75756.0,0.60893232]
[1730997565578,0.002666,75757.0,75756.0,0.6294487]
[1730997566630,0.001666,75757.0,75756.0,0.56292676]
[1730997566833,0.001666,75757.0,75756.0,0.61545012]
[1730997567044,0.002666,75757.0,75756.0,0.62945012]
[1730997567490,0.001666,75757.0,75756.0,0.61545012]
[1730997567738,0.001666,75757.0,75756.0,0.62245012]
[1730997568295,0.002666,75757.0,75756.0,0.60893318]
[1730997568728,0.002666,75757.0,75756.0,0.58893318]
[1730997569100,0.002666,75757.0,75756.0,0.55692676]
[1730997574446,0.002666,75757.0,75756.0,0.53192676]
[1730997580290,0.002666,75757.0,75756.0,0.41001]
[1730997580484,0.082966,75757.0,75756.0,0.41001]
[1730997581362,0.082966,75757.0,75756.0,0.40301]
[1730997582644,0.082966,75757.0,75756.0,0.40801]
[1730997583047,0.081966,75757.0,75756.0,0.40101]
[1730997583178,0.081966,75757.0,75756.0,0.39601]
[1730997583422,0.081966,75757.0,75756.0,0.39801]
[1730997583824,0.081966,75757.0,75756.0,0.40201]
[1730997583825,0.10614843,75757.0,75756.0,0.40201]
[1730997584035,0.139766,75757.0,75756.0,0.40001]
[1730997584233,0.139766,75757.0,75756.0,0.39601]
[1730997584608,0.141766,75757.0,75756.0,0.39601]
[1730997584829,0.141766,75757.0,75756.0,0.396842]
[1730997584830,0.139766,75757.0,75756.0,0.396842]
[1730997585209,0.27400702,75757.0,75756.0,0.396842]
[1730997585410,0.37200702,75757.0,75756.0,0.396842]
[1730997585839,0.243766,75757.0,75756.0,0.396842]
[1730997586255,0.247766,75757.0,75756.0,0.396842]
[1730997586423,0.239766,75757.0,75756.0,0.396842]
[1730997586866,0.255766,75757.0,75756.0,0.398842]
[1730997589629,0.255766,75757.0,75756.0,0.390842]
[1730997592945,0.44226945,75757.0,75756.0,0.390842]
[1730997593162,0.44926945,75757.0,75756.0,0.390842]
[1730997593325,0.44926945,75757.0,75756.0,0.002832]
[1730997594357,0.255766,75757.0,75756.0,0.002832]
[1730997597521,0.38800702,75757.0,75756.0,0.002832]
[1730997597961,0.41100702,75757.0,75756.0,0.002832]
[1730997598369,0.41600702,75757.0,75756.0,0.002832]
[1730997599176,0.41800702,75757.0,75756.0,0.002832]
[1730997599373,0.41600702,75757.0,75756.0,0.002832]
[1730997600447,0.01,75750.0,75749.0,0.000832]
[1730997600692,0.38914102,75750.0,75749.0,0.000832]
[1730997600918,0.38714102,75750.0,75749.0,0.000832]
[1730997602850,0.39114102,75750.0,75749.0,0.000832]
[1730997603321,0.2359,75750.0,75749.0,0.000832]
[1730997603757,0.28917919,75750.0,75749.0,0.000832]
[1730997603974,0.28517919,75750.0,75749.0,0.000832]
[1730997604192,0.29317919,75750.0,75749.0,0.002832]
[1730997604394,0.29917919,75750.0,75749.0,0.001832]
[1730997604848,0.09127919,75750.0,75749.0,0.002832]
[1730997606248,0.028,75750.0,75749.0,0.13507302]
[1730997606447,0.028,75750.0,75749.0,0.34296795]
[1730997606660,0.028,75750.0,75749.0,0.18917302]
[1730997607058,0.001666,75757.0,75753.0,0.005]
[1730997607268,0.001666,75757.0,75754.0,0.19126138]
[1730997607474,0.001666,75757.0,75755.0,0.00263981]
[1730997607680,0.001666,75757.0,75755.0,0.13224102]
[1730997607886,0.001664,75756.0,75755.0,0.13224102]
[1730997608102,0.001664,75756.0,75753.0,0.05902036]
[1730997608322,0.001664,75756.0,75753.0,0.06166025]
[1730997608547,0.001664,75756.0,75752.0,0.05902036]
[1730997608799,0.001664,75756.0,75750.0,0.05902036]
[1730997609016,0.001664,75756.0,75753.0,0.005]
[1730997609223,0.001664,75756.0,75753.0,0.00763988]
[1730997609644,0.001664,75756.0,75754.0,0.13224102]
[1730997609848,0.001664,75756.0,75755.0,0.00263974]
[1730997610055,0.001664,75756.0,75755.0,0.21278076]
[1730997610524,0.001664,75756.0,75755.0,0.21014102]
[1730997610746,0.001664,75756.0,75755.0,0.13224102]
[1730997610973,0.001664,75756.0,75755.0,0.13524102]
[1730997611644,0.001664,75756.0,75755.0,0.14024102]
[1730997612342,0.001664,75756.0,75755.0,0.20226138]
[1730997612853,0.001664,75756.0,75755.0,0.26713484]
[1730997613068,0.001664,75756.0,75755.0,0.26604102]
[1730997613997,0.001664,75756.0,75755.0,0.36445085]
[1730997614218,0.001664,75756.0,75755.0,0.31604102]
[1730997615430,0.001664,75756.0,75755.0,0.31304102]
[1730997615848,0.001664,75756.0,75755.0,0.31504102]
[1730997616309,0.001664,75756.0,75755.0,0.31204102]
[1730997616447,0.001664,75756.0,75755.0,0.31404102]
[1730997618146,0.001664,75756.0,75755.0,0.43221389]
[1730997618352,0.001664,75756.0,75755.0,0.31404102]
[1730997619222,0.001664,75756.0,75755.0,0.43221389]
[1730997619632,0.001664,75756.0,75755.0,0.26884102]
[1730997620129,0.001664,75756.0,75755.0,0.18624102]
[1730997620330,0.001664,75756.0,75755.0,0.054]
[1730997620538,0.001664,75756.0,75755.0,0.004]
[1730997620746,0.001664,75756.0,75755.0,0.20294913]
[1730997620940,0.001664,75756.0,75755.0,0.22008091]
[1730997621136,0.001664,75756.0,75755.0,0.31587514]
[1730997621442,0.001664,75756.0,75755.0,0.21744102]
[1730997621651,0.001664,75756.0,75755.0,0.21044102]
[1730997621867,0.001664,75756.0,75755.0,0.21344102]
[1730997622334,0.001664,75756.0,75755.0,0.21544102]
[1730997622760,0.001664,75756.0,75755.0,0.23569764]
[1730997622951,0.001664,75756.0,75755.0,0.23669764]
[1730997623604,0.001664,75756.0,75755.0,0.28569764]
[1730997623810,0.001664,75756.0,75755.0,0.28769764]
[1730997624240,0.001664,75756.0,75755.0,0.18924102]
[1730997625072,0.001664,75756.0,75755.0,0.18724102]
[1730997625258,0.001664,75756.0,75755.0,0.18988068]
[1730997625489,0.002664,75756.0,75755.0,0.60059222]
[1730997625640,0.001666,75757.0,75756.0,0.005]
[1730997625845,0.001666,75757.0,75756.0,0.41369035]
[1730997626060,0.001666,75757.0,75756.0,0.23724102]
[1730997626645,0.001666,75757.0,75756.0,0.23071024]
[1730997627018,0.001666,75757.0,75756.0,0.21101894]
[1730997627467,0.001666,75757.0,75756.0,0.07877792]
[1730997627887,0.078,75756.0,75755.0,0.06708475]
[1730997628096,0.078,75756.0,75755.0,0.008]
[1730997628097,0.083,75756.0,75755.0,0.008]
[1730997628308,0.088,75756.0,75755.0,0.008]
[1730997628515,0.22024102,75756.0,75755.0,0.008]
[1730997628732,0.088,75756.0,75755.0,0.008]
[1730997629018,0.005,75751.0,75749.0,0.000832]
[1730997629237,0.005,75750.0,75749.0,0.000832]
[1730997629451,0.01,75750.0,75749.0,0.000832]
[1730997631105,0.015,75750.0,75749.0,0.001832]
[1730997631742,0.42114439,75750.0,75749.0,0.002832]